[Event "Israeli Championship 2022"]
[Site "Yosiah Arad"]
[Date "2022.12.11"]
[Round "7.12"]
[White "Kupervaser, Erez"]
[Black "Sitbon, Itay"]
[Result "0-1"]
[ECO "B35"]
[WhiteElo "2331"]
[BlackElo "2092"]
[Annotator "TA"]
[PlyCount "46"]
[EventDate "2022.12.05"]
[EventType "swiss"]
[EventCountry "ISR"]
[SourceTitle "playchess.com"]
[Source "ChessBase"]
[SourceQuality "1"]
[TimeControl "40/5400+30:1800+30"]

{[%evp 14,46,20,8,12,12,9,0,2,-12,-12,-14,-22,-70,-60,-55,-49,-47,-45,-131,-42,-60,-52,-71,-57,-157,-143,-181,-154,-154,-168,-623,-586,-618,-620]} 1. e4 {[%emt 0:00:01]} c5 {[%emt 0:00:00]} 2. Nf3 {[%emt 0:00:08]} g6 {[%emt 0:00:02]} 3. d4 {[%emt 0:00:06]} cxd4 {[%emt 0:00:01]} 4. Nxd4 {[%emt 0:01:14]} Bg7 {[%emt 0:00:11]} 5. Nc3 {[%emt 0:00:04]} Nc6 {[%emt 0:00:04]} 6. Be3 {[%emt 0:00:05]} Nf6 {[%emt 0:00:02]} 7. Bc4 {[%emt 0:00:07]} O-O {[%emt 0:00:07]} 8. Bb3 {[%emt 0:00:02]} Re8 {[%emt 0:00:24] B35: Sicilian: Accelerated Dragon with 5 Nc3: main line.} 9. O-O {[%emt 0:06:36]} d6 {[%emt 0:00:12]} 10. h3 {[%emt 0:02:36]} Na5 {[%emt 0:00:13] The position is equal.} 11. Qf3 {[%emt 0:02:44] 11.Qd2 is the modern continuation.} b6 {[%emt 0:10:08]} 12. Rad1 {[%emt 0:15:52]} Bb7 {[%emt 0:00:32] [#]} 13. g4 $146 {[%emt 0:04:38]} (13. Ba4 $11) ({Predecessor:} 13. Rfe1 Nxb3 14. axb3 Rc8 15. Bg5 h6 16. Bh4 Rc5 17. Qd3 Qa8 18. f3 Nh5 19. Nde2 {½-½ (39) Lederman,L (2245)-Bogdanov,V (2356) Drammen 2018}) 13... Rc8 $15 {[%emt 0:10:43]} 14. g5 {[%emt 0:02:23]} ({Much worse is} 14. Ba4 Rxc3 $1 15. Bxe8 (15. bxc3 Nxe4 16. Bxe8 Qxe8 $17) 15... Qxe8 16. bxc3 Nxe4 $17) 14... Nxb3 {[%emt 0:00:06]} 15. cxb3 {[%emt 0:01:23]} Nd7 {[%emt 0:01:46]} 16. h4 {[%emt 0:03:56] [#]} ({White should play} 16. Rfe1 $15) 16... Ne5 {[%emt 0:12:13]} (16... Ba6 $1 $17 17. Qh3 Bxf1 18. Kxf1 Ne5) 17. Qg2 {[%emt 0:02:51]} Qd7 {[%emt 0:01:34]} 18. f3 {[%emt 0:00:30]} Ba6 {[%emt 0:04:40]} 19. Rf2 {[%emt 0:01:36]} (19. Nde2 $1 $15) 19... Nd3 $17 {[%emt 0:57:02]} 20. Rc2 {[%emt 0:04:31] [#]} Nxb2 $1 {[%emt 0:00:00][%mdl 512]} 21. Rb1 {[%emt 0:00:07]} Nd3 {[%emt 0:00:00]} 22. b4 $2 {[%emt 0:00:14] [#]} (22. Nd5) 22... Nf4 $1 $19 {[%emt 0:00:00][%mdl 512]} 23. Qd2 {[%emt 0:03:36]} Bd3 {[%emt 0:00:00] Weighted Error Value: White=0.51/Black=0.06 (flawless)} 0-1

[Event "Israeli Championship 2022"]
[Site "Yosiah Arad"]
[Date "2022.12.11"]
[Round "7.13"]
[White "Tzidkiya, Yeshaayahu"]
[Black "Shimshovich, Asaf"]
[Result "1/2-1/2"]
[ECO "B81"]
[WhiteElo "2444"]
[BlackElo "1941"]
[Annotator "TA"]
[PlyCount "50"]
[EventDate "2022.12.05"]
[EventType "swiss"]
[EventCountry "ISR"]
[SourceTitle "playchess.com"]
[Source "ChessBase"]
[SourceQuality "1"]
[TimeControl "40/5400+30:1800+30"]

{[%evp 15,50,57,55,12,22,7,0,20,2,6,9,18,30,0,0,0,0,0,0,0,0,0,0,-67,-41,-33,-34,-42,-44,-30,0,0,0,-35,0,0,0]} 1. e4 {[%emt 0:00:01] Baumbach} c5 {[%emt 0:00:05]} 2. Nf3 {[%emt 0:00:04]} e6 {[%emt 0:00:04]} 3. d4 {[%emt 0:00:02]} cxd4 {[%emt 0:00:09]} 4. Nxd4 {[%emt 0:00:04]} Nf6 {[%emt 0:00:05]} 5. Nc3 {[%emt 0:00:03]} d6 {[%emt 0:00:06]} 6. g4 {[%emt 0:00:03]} h6 {[%emt 0:00:24]} 7. Rg1 {[%emt 0:00:08]} Nc6 {[%emt 0:00:23]} 8. Be3 $1 {[%emt 0:00:12] 8.Be3 scores better than 8.h4.} Be7 {[%emt 0:00:23]} 9. h4 {[%emt 0:00:12] B81: Sicilian Scheveningen: Keres Attack.} d5 $1 {[%emt 0:01:43]} 10. Bb5 {[%emt 1:34:41]} Bd7 {[%emt 0:01:27] And now ...e5 would win.} 11. exd5 {[%emt 0:00:00]} Nxd5 {[%emt 0:00:43]} 12. Nxd5 {[%emt 0:00:00]} exd5 {[%emt 0:00:13]} 13. Qd2 {[%emt 0:00:00]} (13. Qe2 {simplifies} Nxd4 14. Bxd7+ Qxd7 15. Bxd4 O-O 16. O-O-O) 13... O-O {[%emt 0:01:55]} 14. Nf5 {[%emt 0:00:00]} (14. Nxc6 {simplifies} bxc6 15. Bd3 c5 16. O-O-O) 14... d4 {[%emt 0:14:13]} (14... Bb4 $5 15. c3 $8 d4 16. Bxh6 (16. Nxd4 Nxd4 17. Qxd4 Bxb5 $15) (16. cxb4 dxe3 17. fxe3 Ne5 $15) 16... Re8+ 17. Kf1 Bf8 $11) 15. Bxh6 {[%emt 0:00:00]} Bb4 $1 {[%emt 0:00:40]} 16. c3 $1 {[%emt 0:00:00]} dxc3 {[%emt 0:01:00]} 17. bxc3 {[%emt 0:00:00] [#]} Re8+ $146 {[%emt 0:00:48]} (17... Ne5 $5 18. Be2 $8 (18. Nxg7 $2 {too greedy.} Nf3+ 19. Ke2 Nxd2 $19) 18... Re8 $11) ({Predecessor:} 17... Ne5 18. Be2 Re8 19. Kf1 Bf8 20. Bf4 Qa5 21. Rg3 Rad8 22. Nd4 Ba4 23. h5 Nc6 {0-1 (49) Timmerman,G (2725)-Andersson,U (2620) Norway 1994 Myers [Baumbach]}) 18. Kf1 {[%emt 0:00:00]} Bf8 {[%emt 0:01:12]} 19. Rd1 {[%emt 0:00:00]} (19. Bg5 $11 Qc8 20. Rg3) 19... Bxf5 {[%emt 0:11:43]} 20. gxf5 {[%emt 0:00:00]} Qxh4 {[%emt 0:03:24] White must now prevent ...Rad8.} 21. Qg5 {[%emt 0:00:00] Against Rad8} Qh3+ {[%emt 0:05:56]} 22. Rg2 {[%emt 0:00:00] aiming for Rd3.} Qh1+ {[%emt 0:00:23]} (22... Qxc3 $2 23. Bxg7 $1 {[%mdl 512]} Qxg7 24. Qh4 $18) (22... Re5 $5 {[%cal Re5f5]} 23. Bxg7 Rxf5 $15) 23. Rg1 {[%emt 0:00:00] Dancing on a razor blade.} Qh3+ {[%emt 0:00:08]} 24. Rg2 {[%emt 0:00:00] Threatens to win with Rd3.} Qh1+ {[%emt 0:00:27]} (24... Qxc3 $2 {[#]} 25. Bxg7 $1 {[%mdl 512]} Qxg7 26. Qh4 $18) (24... Re5 $5 {[%cal Re5f5]} 25. Be2 Rxf5 $15) 25. Rg1 {[%emt 0:00:00]} Qh3+ $1 {[%emt 0:00:06] Weighted Error Value: White=0.16 (very precise) /Black=0.09 (flawless)} 1/2-1/2

[Event "Israeli Championship 2022"]
[Site "Yosiah Arad"]
[Date "2022.12.11"]
[Round "7.14"]
[White "Shachar, Ehud"]
[Black "Poleg, Matan"]
[Result "0-1"]
[ECO "D79"]
[WhiteElo "2319"]
[BlackElo "2291"]
[Annotator "TA"]
[PlyCount "84"]
[EventDate "2022.12.05"]
[EventType "swiss"]
[EventCountry "ISR"]
[SourceTitle "playchess.com"]
[Source "ChessBase"]
[SourceQuality "1"]
[TimeControl "40/5400+30:1800+30"]

{[%evp 17,84,0,27,16,36,25,38,31,28,28,34,26,39,45,43,36,42,0,0,0,0,0,0,0,16,-26,-18,-44,-21,-29,-33,-70,-72,-79,-53,-137,-89,-171,-172,-153,-151,-221,-119,-123,-87,-88,-83,-139,-112,-130,-132,-155,0,0,0,0,0,-68,-69,-569,-497,-1314,-1314,-1314,-1314,-1313,-1305,-29992,-1959]} 1. Nf3 {[%emt 0:00:04]} c5 {[%emt 0:00:19]} 2. g3 {[%emt 0:00:11]} Nc6 {[%emt 0:00:21]} 3. Bg2 {[%emt 0:00:08]} g6 {[%emt 0:00:13]} 4. O-O {[%emt 0:05:42]} Bg7 {[%emt 0:00:22]} 5. c3 {[%emt 0:01:24]} d5 {[%emt 0:03:31]} 6. d4 {[%emt 0:00:43]} cxd4 {[%emt 0:00:36]} 7. cxd4 {[%emt 0:00:08]} Nf6 {[%emt 0:03:45]} 8. Nc3 {[%emt 0:00:19]} O-O {[%emt 0:00:06] 8...Ne4 is more advanced technology.} 9. Bf4 {[%emt 0:02:07]} e6 {[%emt 0:12:17]} 10. Rc1 {[%emt 0:01:29] D79: Fianchetto Grünfeld: Symmetrical Variation (6 0-0 c6 7 cxd5 cxd5).} Nh5 {[%emt 0:04:08]} 11. Bg5 {[%emt 0:07:29]} f6 {[%emt 0:00:16]} 12. Be3 {[%emt 0:00:11] White is slightly better.} f5 {[%emt 1:10:36] Against g4} 13. Qd2 {[%emt 0:05:44]} Nf6 {[%emt 0:00:00] [#]} 14. Ne5 $146 {[%emt 0:06:05]} ({Predecessor:} 14. Bf4 Ne4 15. Qe3 g5 16. Bxg5 Nxg5 17. Nxg5 Bxd4 18. Qf4 Bf6 19. h4 Qe7 20. Rfd1 {½-½ (30) Cesal,J (2320)-Talla,V (2335) Czech Republic 1998}) 14... Nxe5 {[%emt 0:00:00]} 15. dxe5 {[%emt 0:00:28]} Ne4 {[%emt 0:00:00]} 16. Nxe4 {[%emt 0:01:04]} fxe4 {[%emt 0:00:00]} 17. Bh6 {[%emt 0:06:08]} Bxh6 {[%emt 0:00:00]} 18. Qxh6 {[%emt 0:00:10]} Bd7 {[%emt 0:00:00]} 19. h4 {[%emt 0:01:40]} Rf7 {[%emt 0:00:00][%cal Bf8f7,Bf7g7,Bg7g6][%mdl 32]} 20. Bh3 {[%emt 0:02:03]} Qb6 {[%emt 0:00:00]} 21. h5 {[%emt 0:22:41]} gxh5 {[%emt 0:00:00]} 22. e3 {[%emt 0:01:59]} Raf8 {[%emt 0:00:00]} (22... Rg7 $5 {[%cal Rg7g6]}) 23. Rc2 {[%emt 0:01:25]} Rg7 {[%emt 0:00:00]} 24. Rfc1 {[%emt 0:04:13]} Rg6 $1 {[%emt 0:00:00]} 25. Qxh5 {[%emt 0:00:26] [#]} Bc6 $1 {[%emt 0:00:00]} 26. Rd1 {[%emt 0:03:48]} (26. Qh4 $15) 26... Qd8 {[%emt 0:00:00]} (26... Qc7 $142 27. Rdc1 Qg7) 27. Bg4 {[%emt 0:01:51]} (27. Rdc1 $17) 27... Qe7 $19 {[%emt 0:00:00]} 28. Qh3 {[%emt 0:00:25]} Kh8 {[%emt 0:00:00]} 29. Kg2 {[%emt 0:07:15] [#]} (29. Be2 $17 {keeps fighting.}) 29... Rfg8 {[%emt 0:00:00]} ({Better is} 29... Qg7 $1 $19 30. Bh5 (30. Bxe6 $2 Rh6 $19) 30... Rh6) 30. Be2 $17 {[%emt 0:00:13]} Qc7 {[%emt 0:00:00]} 31. Rh1 {[%emt 0:05:02]} R8g7 {[%emt 0:00:00]} 32. Bb5 {[%emt 0:00:25]} (32. Qh4 $142) 32... Qf7 {[%emt 0:00:00]} (32... Qxe5 33. Bxc6 bxc6 34. Rxc6 $11) 33. Bxc6 {[%emt 0:06:26] aiming for Bb5.} Qf3+ {[%emt 0:00:00]} (33... bxc6 $6 34. Qh5 $11) 34. Kh2 {[%emt 0:00:19]} Rc7 $2 {[%emt 0:00:00]} ({Black should play} 34... bxc6 $17 35. Rf1 Rc7) 35. Qh4 $11 {[%emt 0:03:47] Against Rg5} Rxc6 {[%emt 0:00:00] Chess con chili.} (35... Kg7 $5 36. Kg1 $8 Qd1+ 37. Kg2 Qf3+ 38. Kg1 Qd1+ 39. Kg2 Qf3+ 40. Kg1 $11) 36. Rhc1 {[%emt 0:00:27]} Rg8 {[%emt 0:00:15]} 37. Kg1 {[%emt 0:02:44]} (37. Qf4 $11 Qxf4 38. gxf4) 37... Rf8 $1 $40 {[%emt 0:02:04][%mdl 128] White must now prevent ...Rxc2. Black has some attack. Black is much more active.} (37... Rxc2 38. Rxc2 Rf8 39. Kh2 $11) 38. Qe7 $2 {[%emt 0:00:22][%mdl 8192] This costs White the game.} ({White has to play} 38. Kh2 $15) 38... d4 $19 {[%emt 0:01:20] And now ...d3 would win.} ({And not} 38... Rxc2 39. Rxc2 d4 40. Kh2 $17 (40. Qxe6 Qd1+ 41. Kh2 Qxc2 42. Kh3 Qxf2 43. Qd7 dxe3 44. e6 e2 45. e7 Qf1+ 46. Kh4 Qf6+ 47. Kh3 Qh6+ 48. Kg4 Rg8+ 49. Kf5 Qg5+ 50. Kxe4 e1=Q+ 51. Kd3 Qd1+ 52. Ke4 Qe2+ 53. Kd4 Qge5#) (40. exd4 $2 {loses.} e3 $19)) 39. Rxc6 {[%emt 0:01:56]} (39. Kh2 $142 d3 40. Rxc6 Qxf2+ 41. Kh3 bxc6 42. Qg5) 39... Qxf2+ {[%emt 0:00:07]} 40. Kh1 {[%emt 0:00:05]} bxc6 {[%emt 0:01:41]} 41. exd4 {[%emt 0:03:38]} e3 {[%emt 0:02:51] Threatens to win with ...e2.} 42. Qb4 {[%emt 0:01:48]} e2 {[%emt 0:00:11] Weighted Error Value: White=0.80/Black=0.13 (very precise)} (42... Qf3+ $142 43. Kh2 Qh5+ 44. Kg1 Rf2 45. Qf8+ Rxf8 46. Rc2 e2 47. Rc1 Qh3 48. Re1 Rf1+ 49. Rxf1 exf1=Q#) 0-1

[Event "Israeli Championship 2022"]
[Site "Yosiah Arad"]
[Date "2022.12.11"]
[Round "7.15"]
[White "Barak, Gil"]
[Black "Ben-Menachem, Itzhak"]
[Result "1-0"]
[ECO "C54"]
[WhiteElo "2147"]
[BlackElo "2291"]
[Annotator "TA"]
[PlyCount "74"]
[EventDate "2022.12.05"]
[EventType "swiss"]
[EventCountry "ISR"]
[SourceTitle "playchess.com"]
[Source "ChessBase"]
[SourceQuality "1"]
[TimeControl "40/5400+30:1800+30"]

{[%evp 9,74,14,3,-34,-24,-43,-29,-29,-35,-35,-35,-36,-35,-29,-25,-31,-19,-4,-9,-10,-5,-14,32,47,51,33,30,0,0,-4,119,117,147,151,152,153,150,154,187,166,206,208,206,206,228,225,248,239,246,225,308,298,437,447,440,446,459,454,452,422,404,414,392,361,416,387,869]} 1. e4 {[%emt 0:00:05]} e5 {[%emt 0:00:01]} 2. Nf3 {[%emt 0:00:06]} Nc6 {[%emt 0:00:05]} 3. Bc4 {[%emt 0:00:03]} Bc5 {[%emt 0:00:06]} 4. c3 {[%emt 0:00:04]} Nf6 {[%emt 0:00:07]} 5. d4 {[%emt 0:00:05]} exd4 {[%emt 0:00:17]} 6. b4 {[%emt 0:00:09] C54: Giuoco Piano: 4 c3 Nf6, main lines with 5 d4 and 5 d3.} Bb6 {[%emt 0:01:41]} 7. e5 {[%emt 0:00:14]} d5 {[%emt 0:03:23]} 8. exf6 {[%emt 0:00:06] Black has an edge.} dxc4 {[%emt 0:00:03]} 9. b5 {[%emt 0:01:52]} Na5 {[%emt 0:00:17]} 10. Qe2+ {[%emt 0:00:23]} Be6 $1 {[%emt 0:03:00]} (10... Kf8 11. Qe5 g6 12. Bh6+ (12. cxd4 Bg4 $15) (12. Nxd4 h5 $11) 12... Kg8 13. O-O $16) 11. fxg7 {[%emt 0:00:11]} Rg8 {[%emt 0:00:11]} 12. cxd4 {[%emt 0:00:27]} Qd7 {[%emt 0:42:06]} (12... Rxg7 13. O-O $14) 13. Nc3 $132 {[%emt 0:01:02][%mdl 2048] White puts up resistance} O-O-O $1 {[%emt 0:02:56]} 14. Bg5 $1 {[%emt 0:03:16]} Rde8 {[%emt 0:03:46]} 15. O-O-O $1 {[%emt 0:00:56] [#] Threatens to win with Rhe1.} Bf5 $146 {[%emt 0:09:22]} (15... Rxg7 $6 16. Qe5 Rg6 17. Rhe1 $15) (15... Bg4 $11 16. Qd2 Rxg7) ({Predecessor:} 15... Rxg7 16. Qd2 Kb8 17. Rhe1 Rgg8 18. Ne4 Qxb5 19. Nf6 Nc6 20. Qb2 Rxg5 21. d5 Qxb2+ 22. Kxb2 Rxg2 23. Nxe8 Rxf2+ {0-1 (67) Micic,A (2064)-Rajkovic,M (2390) Vrnjacka Banja 2021}) 16. Qd2 $1 $14 {[%emt 0:07:46] [#] And now Rhe1 would win.} ({Much weaker is} 16. Ne5 Qd6 17. Be3 (17. Qf3 $2 Qa3+ 18. Kd2 Bxd4 $19) 17... Rxg7 $15) 16... Rxg7 {[%emt 0:01:19][%cal Oh7h6]} 17. Rhe1 {[%emt 0:13:09] Inhibits h6.} Rgg8 {[%emt 0:02:26]} 18. Qf4 {[%emt 0:06:54]} Bd3 $1 {[%emt 0:10:59]} 19. Bf6 {[%emt 0:16:02]} Bg6 {[%emt 0:12:59]} (19... Rxg2 $2 20. Ne5 Qxd4 21. Nxd3 Qxf4+ 22. Nxf4 $18) (19... a6 $11) 20. Ne5 $16 {[%emt 0:13:20] Active counter play! Pair of Knights! White stays focused until the end.} Qd6 {[%emt 0:00:57] [#] ...Qa3+ is the strong threat.} 21. Nxg6 {[%emt 0:00:32] Dancing on a razor blade.} fxg6 {[%emt 0:00:44]} 22. Qxd6 {[%emt 0:02:11]} cxd6 {[%emt 0:00:02]} 23. Nd5 {[%emt 0:02:37] aiming for Ne7+.} Bd8 {[%emt 0:00:06]} 24. Be7 {[%emt 0:02:48][%cal Bf6e7,Be7d6,Bd6g3,Bg3f4][%mdl 32]} Rg7 {[%emt 0:01:56][%cal Rd8e7]} 25. Bxd6 {[%emt 0:01:45]} Rxe1 {[%emt 0:00:22]} 26. Rxe1 {[%emt 0:00:01]} Rd7 {[%emt 0:00:02]} 27. Re6 {[%emt 0:02:44]} Rf7 {[%emt 0:00:32] Hoping for ...Kd7.} 28. Bg3 {[%emt 0:01:24]} Rd7 {[%emt 0:00:42]} 29. Rd6 {[%emt 0:05:46]} Rf7 {[%emt 0:00:02]} 30. Kc2 {[%emt 0:03:06] Inhibits c3.} h5 {[%emt 0:00:02]} (30... Rd7 $142 31. Rxd7 Kxd7) 31. Rxg6 $18 {[%emt 0:10:33]} h4 {[%emt 0:00:03]} 32. Bf4 {[%emt 0:00:43]} Rf5 {[%emt 0:00:25]} 33. Rd6 {[%emt 0:00:25]} b6 {[%emt 0:00:35]} 34. g3 {[%emt 0:01:29]} Nb7 {[%emt 0:00:12]} 35. Rc6+ {[%emt 0:00:12] White is winning.} Kd7 {[%emt 0:00:01]} 36. Nc3 {[%emt 0:00:50]} hxg3 {[%emt 0:00:40]} 37. fxg3 {[%emt 0:00:28]} ({Less strong is} 37. hxg3 Rxb5 38. Rxc4 Rh5 $18) 37... Bf6 $2 {[%emt 0:00:32] Weighted Error Value: White=0.06 (flawless) /Black=0.20 (precise)} (37... Rxb5 38. Nxb5 (38. Rxc4 Rh5 $16) 38... Kxc6) 1-0

[Event "Israeli Championship 2022"]
[Site "Yosiah Arad"]
[Date "2022.12.12"]
[Round "8.1"]
[White "Gorshtein, Ido"]
[Black "Sokolovsky, Yahli"]
[Result "1-0"]
[ECO "A20"]
[WhiteElo "2469"]
[BlackElo "2414"]
[Annotator "TA"]
[PlyCount "55"]
[EventDate "2022.12.05"]
[EventType "swiss"]
[EventCountry "ISR"]
[SourceTitle "playchess.com"]
[Source "ChessBase"]
[SourceQuality "1"]
[TimeControl "40/5400+30:1800+30"]

{[%evp 9,55,11,13,12,23,0,19,27,12,19,21,-31,6,-16,-16,-12,-9,-20,14,17,7,21,20,0,0,0,0,-42,-35,-43,15,4,4,0,16,9,26,0,20,40,336,352,354,345,655,650,623,630]} 1. c4 {[%emt 0:00:03]} e5 {[%emt 0:00:04][%cal Be7e5,Be5e4][%mdl 32]} 2. g3 {[%emt 0:00:06]} c6 {[%emt 0:00:24]} 3. Nf3 {[%emt 0:00:07]} e4 {[%emt 0:00:07]} 4. Nd4 {[%emt 0:00:03]} Qb6 {[%emt 0:00:08]} 5. e3 {[%emt 0:01:20]} d5 {[%emt 0:02:35] [#]} 6. d3 $146 {[%emt 0:05:33] A20: English Opening: 1...e5.} ({Predecessor:} 6. Nc3 Nf6 7. Qc2 Na6 8. a3 Nc5 9. b4 Ne6 10. Nce2 a5 11. c5 Qc7 12. Bb2 Nxd4 13. Nxd4 {½-½ (36) Willis,R (2127)-Gill,O (2135) England 2019}) 6... Nf6 {[%emt 0:03:36]} 7. dxe4 {[%emt 0:00:53]} Nxe4 {[%emt 0:02:15]} 8. cxd5 {[%emt 0:00:31] The position is equal.} cxd5 {[%emt 0:13:24]} 9. Bg2 {[%emt 0:09:29]} Bb4+ {[%emt 0:05:52]} 10. Nd2 {[%emt 0:03:56]} ({White should try} 10. Bd2 $11) 10... Nc6 {[%emt 0:01:23]} (10... O-O $5 {[%cal Rb8c6]}) 11. N4b3 {[%emt 0:14:20]} O-O {[%emt 0:26:19]} 12. O-O {[%emt 0:00:11]} Re8 {[%emt 0:00:56]} 13. Nf3 {[%emt 0:06:52]} (13. Nxe4 {simplifies} dxe4 14. Bd2 Be6 15. Bxb4 Nxb4 16. Qd4) 13... Bg4 {[%emt 0:02:12] [#] Threatens to win with ...Ne5.} 14. Qxd5 {[%emt 0:08:46]} Rad8 {[%emt 0:10:58]} 15. Qc4 {[%emt 0:00:10]} Be6 {[%emt 0:01:59]} 16. Qe2 {[%emt 0:06:45]} Bxb3 {[%emt 0:07:14]} 17. axb3 {[%emt 0:00:08]} Na5 {[%emt 0:00:17] Pair of Knights!} 18. Qc2 {[%emt 0:04:55]} (18. Ra4 $5 {[%cal Re2c2]}) 18... Rc8 {[%emt 0:04:06]} 19. Qd1 {[%emt 0:01:39]} Bc5 {[%emt 0:04:07]} ({Black should play} 19... Red8 $15 20. Nd4 Nc5) 20. b4 {[%emt 0:01:24]} (20. Nd4 {is more complex.} Bxd4 21. b4 Rxc1 22. Rxc1 Bxe3 23. Qd7) 20... Bxb4 {[%emt 0:01:50]} 21. Nd4 {[%emt 0:01:49]} Nc4 {[%emt 0:04:41]} 22. Qd3 {[%emt 0:02:42]} Ncd6 {[%emt 0:00:59]} 23. Rd1 {[%emt 0:01:31]} (23. Nf5 {keeps more tension.} Qb5 24. Qxb5 Nxb5 25. Nd4) 23... h5 {[%emt 0:02:34]} (23... Nc5 $5 {[%cal Rc5d3]} 24. Qe2 Nde4 $11) 24. Nc2 $36 {[%emt 0:05:16][%mdl 2048] [#] Nxb4 is the strong threat. Black is under pressure.} Bc5 {[%emt 0:00:25][%mdl 8192] Black cannot hold the game after this.} (24... Nc5 $14 25. Qd5 (25. Qxd6 Red8 $17) 25... Nde4) 25. b4 $18 {[%emt 0:01:36]} Bxb4 {[%emt 0:01:45]} 26. Nxb4 {[%emt 0:00:09]} Rxc1 $2 {[%emt 0:01:10]} (26... Qxb4 27. Ba3 (27. Rxa7 Rc3 $11) 27... Qc4 28. Bxd6 Qxd3 29. Rxd3 Rcd8) 27. Raxc1 {[%emt 0:00:26]} Qxb4 {[%emt 0:00:03]} 28. f3 {[%emt 0:01:44] Weighted Error Value: White=0.12 (very precise) /Black=0.42} 1-0